[Event "10th Cesme Open-A 2024"]
[Site "Cesme"]
[Date "2024.06.29"]
[Round "8"]
[White "Yurtseven, Melih"]
[Black "Barrish, Daniel"]
[Result "1/2-1/2"]
[ECO "A21"]
[WhiteElo "2333"]
[BlackElo "2256"]
[Annotator "RC"]
[PlyCount "121"]
[EventDate "2024.06.23"]
[EventType "swiss"]
[EventCountry "TUR"]
[SourceTitle "playchess.com"]
[Source "ChessBase"]
[SourceQuality "1"]
[TimeControl "5400+30"]

1. c4 {[%emt 0:06:00]} e5 {[%emt 0:01:00]} 2. Nc3 {[%emt 0:01:30]} Bb4 {[%emt 0:00:00]} 3. Nd5 {[%emt 0:00:30]} Be7 {[%emt 0:00:00]} 4. Nf3 {[%emt 0:00:30]} d6 {[%emt 0:00:30]} 5. g3 {[%emt 0:01:30]} Nf6 {[%emt 0:01:30]} 6. Nc3 {[%emt 0:01:30]} Be6 {[%emt 0:02:30]} 7. d4 {[%emt 0:08:30]} Nbd7 {[%emt 0:12:30]} 8. b3 {[%emt 0:02:30]} c6 {[%emt 0:00:30]} 9. Bg2 {[%emt 0:00:30]} h6 {[%emt 0:06:30]} 10. O-O {[%emt 0:00:30]} e4 {[%emt 0:00:30]} 11. d5 {[%emt 0:08:30]} cxd5 {[%emt 0:00:30]} 12. Nd4 {[%emt 0:03:30]} dxc4 {[%emt 0:11:30]} 13. Nxe6 {[%emt 0:02:30]} fxe6 {[%emt 0:00:30]} 14. bxc4 {[%emt 0:01:30]} Nc5 {[%emt 0:03:30]} 15. Be3 {[%emt 0:00:30]} O-O {[%emt 0:05:30]} 16. Bxc5 {[%emt 0:01:30]} dxc5 {[%emt 0:00:00]} 17. Nxe4 {[%emt 0:00:30]} Nxe4 {[%emt 0:01:00]} 18. Bxe4 {[%emt 0:00:30]} Rb8 {[%emt 0:07:30]} 19. Qa4 {[%emt 0:01:30]} Qd4 {[%emt 0:03:30]} 20. Bf3 {[%emt 0:00:30]} Bf6 {[%emt 0:07:30]} 21. Rab1 {[%emt 0:01:30]} b6 {[%emt 0:02:30]} 22. Rfd1 {[%emt 0:15:30]} Qc3 {[%emt 0:00:30]} 23. Qxa7 {[%emt 0:10:30]} Qxc4 {[%emt 0:00:30]} 24. Rdc1 {[%emt 0:00:00]} Qd4 {[%emt 0:00:30]} 25. Rxb6 {[%emt 0:01:00]} Qd2 {[%emt 0:02:30]} 26. Rxb8 {[%emt 0:00:30]} Qxc1+ {[%emt 0:00:30]} 27. Kg2 {[%emt 0:00:30]} Rxb8 {[%emt 0:00:30]} 28. Qxb8+ {[%emt 0:00:30]} Kf7 {[%emt 0:07:30]} 29. a4 {[%emt 0:08:30]} c4 {[%emt 0:03:30]} 30. a5 {[%emt 0:01:30]} Qa3 {[%emt 0:06:07]} 31. Qb7+ {[%emt 0:00:30]} Qe7 {[%emt 0:00:20]} 32. a6 {[%emt 0:15:37]} Qxb7 {[%emt 0:02:43]} 33. Bxb7 {[%emt 0:02:39]} Bd4 {[%emt 0:00:07]} 34. f4 {[%emt 0:01:57]} Ke7 {[%emt 0:00:46]} 35. Kf3 {[%emt 0:00:30]} c3 {[%emt 0:04:24]} 36. Be4 {[%emt 0:00:30]} Kd6 {[%emt 0:00:30]} 37. Bd3 {[%emt 0:00:00]} Kc6 {[%emt 0:02:28]} 38. Ke4 {[%emt 0:01:56]} Bf6 {[%emt 0:00:54]} 39. Ke3 {[%emt 0:01:16]} Kb6 {[%emt 0:01:15]} 40. Bc4 {[%emt 0:00:17]} Bd4+ {[%emt 0:01:33]} 41. Kd3 {[%emt 0:00:07]} Bg1 {[%emt 0:00:51]} 42. h3 {[%emt 0:00:35]} Bh2 {[%emt 0:00:52]} 43. Kxc3 {[%emt 0:00:45]} Bxg3 {[%emt 0:00:38]} 44. e3 {[%emt 0:00:05]} g5 {[%emt 0:00:13]} 45. fxg5 {[%emt 0:00:44]} hxg5 {[%emt 0:00:07]} 46. Kd4 {[%emt 0:00:11]} e5+ {[%emt 0:02:36]} 47. Kd5 {[%emt 0:00:55]} Bf2 {[%emt 0:00:07]} 48. Ke4 {[%emt 0:00:35]} Bg1 {[%emt 0:00:20]} 49. Kf3 {[%emt 0:00:19]} Ka7 {[%emt 0:00:17]} 50. Bd3 {[%emt 0:00:46]} Kb6 {[%emt 0:00:30]} 51. Bf1 {[%emt 0:00:30]} Ka7 {[%emt 0:00:00]} 52. Bb5 {[%emt 0:00:25]} Kb6 {[%emt 0:00:00]} 53. Bc4 {[%emt 0:00:13]} Ka7 {[%emt 0:00:00]} 54. e4 {[%emt 0:00:46]} Bh2 {[%emt 0:00:54]} 55. Kg4 {[%emt 0:00:30]} Bf4 {[%emt 0:00:00]} 56. Kf5 {[%emt 0:00:33]} Kb6 {[%emt 0:00:09]} 57. Ke6 {[%emt 0:00:00]} Bg3 {[%emt 0:00:15]} 58. Kd7 {[%emt 0:00:00]} Ka7 {[%emt 0:00:36]} 59. Kc7 {[%emt 0:00:11]} Bf4 {[%emt 0:00:00]} 60. Kc8 {[%emt 0:00:00]} Bg3 {[%emt 0:00:13]} 61. Kc7 {[%emt 0:00:05]} 1/2-1/2

[Event "10th Cesme Open-A 2024"]
[Site "Cesme"]
[Date "2024.06.29"]
[Round "8"]
[White "Kamer, Kayra"]
[Black "Kovalev, Vladislav"]
[Result "0-1"]
[ECO "C47"]
[WhiteElo "2316"]
[BlackElo "2559"]
[Annotator "TA"]
[PlyCount "70"]
[EventDate "2024.06.23"]
[EventType "swiss"]
[EventCountry "TUR"]
[SourceTitle "playchess.com"]
[Source "ChessBase"]
[SourceQuality "1"]
[TimeControl "5400+30"]

{[%evp 9,70,6,2,0,4,0,6,0,7,0,0,-4,-4,0,39,-33,27,-14,0,-22,-27,-28,-10,-15,-12,-31,-35,-20,-31,-16,-29,-32,-35,-21,-30,-58,-58,-53,-57,-80,-73,-79,-87,-78,-75,-103,-35,-133,-138,-172,-165,-183,-185,-251,-229,-228,-210,-212,-208,-211,-207,-192,-149]} 1. e4 {[%emt 0:02:00]} e5 {[%emt 0:01:00]} 2. Nf3 {[%emt 0:00:30]} Nc6 {[%emt 0:00:30]} 3. Nc3 {[%emt 0:00:30]} Nf6 {[%emt 0:00:30]} 4. a3 {[%emt 0:00:30]} g6 {[%emt 0:07:30]} 5. d4 {[%emt 0:00:30]} exd4 {[%emt 0:00:00]} 6. Nxd4 {[%emt 0:00:30][%cal Oe4e5]} Bg7 {[%emt 0:00:00]} 7. Nde2 {[%emt 0:00:30]} d6 {[%emt 0:05:30]} 8. g3 {[%emt 0:00:30] The position is equal.} Be6 {[%emt 0:11:30]} 9. Bg2 {[%emt 0:00:30]} Qd7 {[%emt 0:00:30]} 10. Nd5 {[%emt 0:03:30][%cal Oc1h6]} h5 {[%emt 0:10:30]} 11. h3 {[%emt 0:03:30]} Ne5 {[%emt 0:10:30]} 12. Nd4 {[%emt 0:04:30]} ({White should play} 12. f4 $1 $14 Nc6 13. c4) 12... Nxd5 {[%emt 0:06:30]} ({Black should try} 12... O-O-O $15) 13. Nxe6 {[%emt 0:03:30]} (13. exd5 $5 Bf5 $8 14. Nxf5 Qxf5 15. O-O $11) 13... Qxe6 {[%emt 0:01:30]} 14. Qxd5 {[%emt 0:00:30]} Qxd5 {[%emt 0:00:30]} 15. exd5 {[%emt 0:00:30]} f5 {[%emt 0:03:30]} 16. Rb1 {[%emt 0:00:30]} Kf7 {[%emt 0:01:30]} 17. b3 {[%emt 0:00:30]} Rae8 {[%emt 0:01:30] [#] ...Nd3+ would now be deadly.} 18. O-O {[%emt 0:00:30]} h4 {[%emt 0:00:30]} 19. Bd2 {[%emt 0:04:30]} Nd7 {[%emt 0:04:30]} 20. Rbe1 {[%emt 0:01:30]} hxg3 {[%emt 0:08:30]} 21. fxg3 {[%emt 0:00:30]} Bd4+ {[%emt 0:00:30]} 22. Kh1 {[%emt 0:04:30]} Rxe1 {[%emt 0:02:30]} 23. Bxe1 {[%emt 0:00:00]} Nf6 {[%emt 0:00:30]} 24. Rf4 {[%emt 0:03:00]} Re8 {[%emt 0:06:31] Black is more active.} 25. Ba5 {[%emt 0:06:30]} Bc5 {[%emt 0:02:18]} 26. Bf3 {[%emt 0:00:30]} b6 {[%emt 0:02:20]} 27. Bb4 {[%emt 0:00:30]} Bxb4 {[%emt 0:01:59]} ({Better is} 27... a5 $17 28. Bc3 Bxa3) 28. axb4 $17 {[%emt 0:02:30][%mdl 4096] Endgame. KRB-KRN} (28. Rxb4 $15 Re3 29. Kg2) 28... Re3 {[%emt 0:00:04]} 29. g4 {[%emt 0:00:30]} Rc3 {[%emt 0:01:58]} 30. b5 {[%emt 0:01:30]} fxg4 {[%emt 0:00:37]} ({Resist} 30... Rxc2 31. g5 Nd7 32. Rc4 $17) 31. hxg4 {[%emt 0:00:30]} (31. Bxg4 $142 Rxc2 32. Be6+ Kg7 33. Kg1) 31... g5 $19 {[%emt 0:00:30]} (31... Rxc2 $2 {loses.} 32. g5 $18) 32. Rf5 {[%emt 0:00:30] Black is clearly better.} Kg6 {[%emt 0:00:30]} 33. Bd1 {[%emt 0:00:30]} Ne4 {[%emt 0:00:30] [#] Threatens to win with ...Ng3+.} 34. Kg2 {[%emt 0:00:30]} Rg3+ {[%emt 0:00:30]} 35. Kh2 {[%emt 0:00:30] And now Bf3 would win.} Re3 {[%emt 0:06:52] Weighted Error Value: White=0.22 (precise) /Black=0.09 (flawless) .  Mistake:       	White=3     	Black=2      Inaccurate:     	White=3     	Black=1      OK:         	White=10    	Black=14     Best:        	White=1     	Black=2} 0-1

[Event "10th Cesme Open-A 2024"]
[Site "Cesme"]
[Date "2024.06.29"]
[Round "8"]
[White "Bicer, Atakan Mert"]
[Black "Rasulov, Vugar"]
[Result "0-1"]
[ECO "C90"]
[WhiteElo "2313"]
[BlackElo "2557"]
[Annotator "RC"]
[PlyCount "120"]
[EventDate "2024.06.23"]
[EventType "swiss"]
[EventCountry "TUR"]
[SourceTitle "playchess.com"]
[Source "ChessBase"]
[SourceQuality "1"]
[TimeControl "5400+30"]

1. e4 {[%emt 0:01:00]} e5 {[%emt 0:02:00]} 2. Nf3 {[%emt 0:00:00]} Nc6 {[%emt 0:00:00]} 3. Bb5 {[%emt 0:00:00]} a6 {[%emt 0:00:00]} 4. Ba4 {[%emt 0:00:30]} Nf6 {[%emt 0:02:30]} 5. O-O {[%emt 0:00:30]} Be7 {[%emt 0:00:30]} 6. Re1 {[%emt 0:00:00]} b5 {[%emt 0:00:30]} 7. Bb3 {[%emt 0:00:00]} O-O {[%emt 0:00:30]} 8. a4 {[%emt 0:00:30]} Bb7 {[%emt 0:00:00]} 9. d3 {[%emt 0:00:00]} d6 {[%emt 0:00:00]} 10. c3 {[%emt 0:12:00]} Na5 {[%emt 0:02:30]} 11. Bc2 {[%emt 0:00:00]} c5 {[%emt 0:01:30]} 12. Nbd2 {[%emt 0:00:00]} Re8 {[%emt 0:01:30]} 13. Nf1 {[%emt 0:05:30]} Bf8 {[%emt 0:00:30]} 14. Bg5 {[%emt 0:00:30]} h6 {[%emt 0:00:30]} 15. Bh4 {[%emt 0:00:30]} g6 {[%emt 0:07:30]} 16. Ne3 {[%emt 0:25:30]} Bg7 {[%emt 0:01:30]} 17. Qd2 {[%emt 0:01:30]} c4 {[%emt 0:14:30]} 18. Bxf6 {[%emt 0:16:30]} Qxf6 {[%emt 0:00:30]} 19. d4 {[%emt 0:00:30]} Qd8 {[%emt 0:10:30]} 20. d5 {[%emt 0:04:30]} Bc8 {[%emt 0:01:30]} 21. axb5 {[%emt 0:02:30]} axb5 {[%emt 0:00:00]} 22. Ra2 {[%emt 0:01:30]} Re7 {[%emt 0:03:00]} 23. Rea1 {[%emt 0:04:30]} Rea7 {[%emt 0:00:30]} 24. Qe2 {[%emt 0:05:32]} Bd7 {[%emt 0:02:30]} 25. Nd2 {[%emt 0:01:37]} h5 {[%emt 0:03:30]} 26. b4 {[%emt 0:02:08]} cxb3 {[%emt 0:00:30]} 27. Nxb3 {[%emt 0:09:41]} Bh6 {[%emt 0:01:30]} 28. Nxa5 {[%emt 0:01:46]} Rxa5 {[%emt 0:00:30]} 29. Bd3 {[%emt 0:00:11]} Bxe3 {[%emt 0:00:30]} 30. fxe3 {[%emt 0:00:30]} Ra4 {[%emt 0:00:30]} 31. Rxa4 {[%emt 0:00:30]} bxa4 {[%emt 0:01:30]} 32. Bb5 {[%emt 0:04:50]} a3 {[%emt 0:00:00]} 33. Bxd7 {[%emt 0:01:25]} Qxd7 {[%emt 0:00:00]} 34. Kf2 {[%emt 0:00:30]} Qd8 {[%emt 0:00:30]} 35. g3 {[%emt 0:00:30]} Qb6 {[%emt 0:00:30]} 36. Qc2 {[%emt 0:00:07]} Kg7 {[%emt 0:01:30]} 37. Ke2 {[%emt 0:00:23]} Qa6+ {[%emt 0:00:30]} 38. Qd3 {[%emt 0:01:07]} Qa4 {[%emt 0:00:30]} 39. c4 {[%emt 0:00:21]} a2 {[%emt 0:00:00]} 40. Kf3 {[%emt 0:00:19]} Ra5 {[%emt 0:04:00]} 41. h3 {[%emt 0:00:30]} Qd7 {[%emt 0:00:30]} 42. Kg2 {[%emt 0:00:30]} Qa7 {[%emt 0:00:30]} 43. Kf2 {[%emt 0:00:30]} Ra4 {[%emt 0:00:30]} 44. Qe2 {[%emt 0:00:30]} Qa6 {[%emt 0:00:30]} 45. Kf3 {[%emt 0:00:30]} Ra3 {[%emt 0:00:30]} 46. g4 {[%emt 0:00:53]} hxg4+ {[%emt 0:05:30]} 47. hxg4 {[%emt 0:00:05]} Qa7 {[%emt 0:00:30]} 48. g5 {[%emt 0:00:33]} Qa8 {[%emt 0:03:30]} 49. Qb2 {[%emt 0:00:43]} Qa7 {[%emt 0:01:30]} 50. Qf2 {[%emt 0:00:12]} Kg8 {[%emt 0:03:30]} 51. Qe2 {[%emt 0:00:38]} Qa8 {[%emt 0:00:30]} 52. Qb2 {[%emt 0:00:25]} Ra4 {[%emt 0:00:30]} 53. c5 {[%emt 0:00:46]} Qc8 {[%emt 0:00:30]} 54. Qh2 {[%emt 0:00:44]} Rxe4 {[%emt 0:00:30]} 55. Rh1 {[%emt 0:00:30]} Qg4+ {[%emt 0:01:30]} 56. Kf2 {[%emt 0:00:04]} Qh4+ {[%emt 0:00:30]} 57. Qxh4 {[%emt 0:00:34]} Rxh4 {[%emt 0:00:30]} 58. Rd1 {[%emt 0:00:36]} Ra4 {[%emt 0:00:00]} 59. Ra1 {[%emt 0:00:46]} dxc5 {[%emt 0:00:00]} 60. d6 {[%emt 0:00:20]} Kf8 {[%emt 0:00:30]} 0-1

[Event "10th Cesme Open-A 2024"]
[Site "Cesme"]
[Date "2024.06.29"]
[Round "8"]
[White "Taspinar, Yanki"]
[Black "Karaoglan, Kivanc"]
[Result "1-0"]
[ECO "E52"]
[WhiteElo "2309"]
[BlackElo "2274"]
[Annotator "RC"]
[PlyCount "95"]
[EventDate "2024.06.23"]
[EventType "swiss"]
[EventCountry "TUR"]
[SourceTitle "playchess.com"]
[Source "ChessBase"]
[SourceQuality "1"]
[TimeControl "5400+30"]

1. d4 {[%emt 0:01:00]} Nf6 {[%emt 0:01:00]} 2. c4 {[%emt 0:00:30]} e6 {[%emt 0:00:30]} 3. Nc3 {[%emt 0:00:30]} Bb4 {[%emt 0:00:30]} 4. e3 {[%emt 0:00:30]} b6 {[%emt 0:00:30]} 5. Bd2 {[%emt 0:00:30]} Bb7 {[%emt 0:00:30]} 6. Nf3 {[%emt 0:00:30]} O-O {[%emt 0:01:30]} 7. Bd3 {[%emt 0:00:00]} d5 {[%emt 0:02:30]} 8. cxd5 {[%emt 0:00:00]} exd5 {[%emt 0:00:30]} 9. O-O {[%emt 0:00:30]} Nbd7 {[%emt 0:00:30]} 10. Qc2 {[%emt 0:06:30]} a6 {[%emt 0:02:30]} 11. Ne5 {[%emt 0:03:30]} Nxe5 {[%emt 0:06:30]} 12. dxe5 {[%emt 0:00:30]} Ne4 {[%emt 0:00:30]} 13. Bxe4 {[%emt 0:27:30]} dxe4 {[%emt 0:01:30]} 14. Rfd1 {[%emt 0:06:30]} Qe8 {[%emt 0:18:30]} 15. a3 {[%emt 0:13:30]} Bxc3 {[%emt 0:00:30]} 16. Bxc3 {[%emt 0:00:30]} Qe6 {[%emt 0:06:30]} 17. Qd2 {[%emt 0:02:30]} Bc6 {[%emt 0:03:30]} 18. Qd4 {[%emt 0:09:30]} h5 {[%emt 0:01:30]} 19. Rac1 {[%emt 0:02:30]} Rfd8 {[%emt 0:00:30]} 20. Qxd8+ {[%emt 0:01:30]} Rxd8 {[%emt 0:00:30]} 21. Rxd8+ {[%emt 0:00:00]} Kh7 {[%emt 0:00:30]} 22. Bd4 {[%emt 0:02:00]} h4 {[%emt 0:03:30]} 23. h3 {[%emt 0:00:30]} g5 {[%emt 0:06:30]} 24. Kh2 {[%emt 0:03:13]} a5 {[%emt 0:00:30]} 25. b4 {[%emt 0:04:01]} axb4 {[%emt 0:10:30]} 26. axb4 {[%emt 0:00:30]} b5 {[%emt 0:00:30]} 27. Rc5 {[%emt 0:00:30]} Kg6 {[%emt 0:03:30]} 28. Rg8+ {[%emt 0:05:26]} Kh6 {[%emt 0:00:30]} 29. Kg1 {[%emt 0:00:40]} Kh5 {[%emt 0:02:30]} 30. Rf8 {[%emt 0:03:27]} Kg6 {[%emt 0:02:30]} 31. Rd8 {[%emt 0:00:30]} Kh7 {[%emt 0:00:30]} 32. Kh2 {[%emt 0:00:30]} Kg6 {[%emt 0:00:30]} 33. Rc3 {[%emt 0:00:30]} Kh7 {[%emt 0:00:30]} 34. Rc1 {[%emt 0:02:44]} Qe7 {[%emt 0:04:35]} 35. Rc8 {[%emt 0:00:26]} Bd5 {[%emt 0:00:35]} 36. R1xc7 {[%emt 0:03:25]} Qxb4 {[%emt 0:00:20]} 37. Re8 {[%emt 0:00:28]} Kg6 {[%emt 0:01:41]} 38. Rg8+ {[%emt 0:01:32]} Kf5 {[%emt 0:00:52]} 39. Rh8 {[%emt 0:00:31]} f6 {[%emt 0:06:43]} 40. Rc5 {[%emt 0:00:10]} Ke6 {[%emt 0:02:49]} 41. Rh6 {[%emt 0:00:22]} Bc4 {[%emt 0:00:40]} 42. Rxf6+ {[%emt 0:00:30]} Kd7 {[%emt 0:00:28]} 43. Rd6+ {[%emt 0:00:48]} Ke8 {[%emt 0:00:11]} 44. Rc8+ {[%emt 0:00:10]} Kf7 {[%emt 0:00:12]} 45. Rc7+ {[%emt 0:00:17]} Ke8 {[%emt 0:00:04]} 46. Rh6 {[%emt 0:00:58]} Kd8 {[%emt 0:01:57]} 47. Bb6 {[%emt 0:00:30]} Qb2 {[%emt 0:00:30]} 48. Rh8+ {[%emt 0:00:06]} 1-0

[Event "10th Cesme Open-A 2024"]
[Site "Cesme"]
[Date "2024.06.29"]
[Round "8"]
[White "Koksal, Ege"]
[Black "Pacher, Milan"]
[Result "1-0"]
[ECO "D28"]
[WhiteElo "2297"]
[BlackElo "2387"]
[Annotator "RC"]
[PlyCount "45"]
[EventDate "2024.06.23"]
[EventType "swiss"]
[EventCountry "TUR"]
[SourceTitle "playchess.com"]
[Source "ChessBase"]
[SourceQuality "1"]
[TimeControl "5400+30"]

1. d4 {[%emt 0:05:00]} d5 {[%emt 1:31:00]} 2. c4 {[%emt 1:26:30]} dxc4 {[%emt 0:00:30]} 3. Nf3 {[%emt 0:00:30]} Nf6 {[%emt 0:00:00]} 4. e3 {[%emt 0:00:00]} e6 {[%emt 0:00:00]} 5. Bxc4 {[%emt 0:00:00]} c5 {[%emt 0:00:00]} 6. O-O {[%emt 0:00:00]} Nc6 {[%emt 0:00:00]} 7. Qe2 {[%emt 0:00:00]} a6 {[%emt 0:00:00]} 8. Rd1 {[%emt 0:00:00]} b5 {[%emt 0:00:00]} 9. dxc5 {[%emt 0:00:00]} Qc7 {[%emt 0:00:00]} 10. Bd3 {[%emt 0:00:00]} Bxc5 {[%emt 0:00:00]} 11. a4 {[%emt 0:00:00]} bxa4 {[%emt 0:00:00]} 12. Rxa4 {[%emt 0:00:00]} O-O {[%emt 0:00:00]} 13. Bd2 {[%emt 0:00:00]} Bb7 {[%emt 0:00:00]} 14. Bc3 {[%emt 0:00:00]} e5 {[%emt 0:00:00]} 15. Nbd2 {[%emt 0:00:00]} Rfd8 {[%emt 0:00:00]} 16. Ne4 {[%emt 0:00:00]} Nxe4 {[%emt 0:00:00]} 17. Bxe4 {[%emt 0:00:00]} Rxd1+ {[%emt 0:00:00]} 18. Qxd1 {[%emt 0:00:00]} Rd8 {[%emt 0:00:00]} 19. Qc2 {[%emt 0:00:00]} h6 {[%emt 0:00:00]} 20. Rc4 {[%emt 0:00:00]} Qd6 {[%emt 0:00:00]} 21. g3 {[%emt 0:00:00]} f5 {[%emt 0:00:00]} 22. Bxf5 {[%emt 0:00:00]} Na5 {[%emt 0:00:00]} 23. Bxa5 {[%emt 0:00:00]} 1-0

[Event "10th Cesme Open-A 2024"]
[Site "Cesme"]
[Date "2024.06.29"]
[Round "8"]
[White "Erten, Kerem"]
[Black "Kilic, Eray"]
[Result "1/2-1/2"]
[ECO "B51"]
[WhiteElo "2277"]
[BlackElo "2443"]
[Annotator "RC"]
[PlyCount "95"]
[EventDate "2024.06.23"]
[EventType "swiss"]
[EventCountry "TUR"]
[SourceTitle "playchess.com"]
[Source "ChessBase"]
[SourceQuality "1"]
[TimeControl "5400+30"]

1. e4 {[%emt 0:01:00]} c5 {[%emt 0:01:00]} 2. Nf3 {[%emt 0:00:30]} d6 {[%emt 0:00:30]} 3. Bb5+ {[%emt 0:00:30]} Nd7 {[%emt 0:00:00]} 4. O-O {[%emt 0:00:00]} a6 {[%emt 0:00:00]} 5. Bd3 {[%emt 0:00:00]} Ngf6 {[%emt 0:00:00]} 6. Re1 {[%emt 0:00:00]} e6 {[%emt 0:00:00]} 7. c3 {[%emt 0:00:00]} b5 {[%emt 0:00:00]} 8. a4 {[%emt 0:01:30]} Bb7 {[%emt 0:00:00]} 9. Bc2 {[%emt 0:01:30]} c4 {[%emt 0:00:30]} 10. d3 {[%emt 0:00:30]} cxd3 {[%emt 0:00:30]} 11. Qxd3 {[%emt 0:00:30]} Nc5 {[%emt 0:00:30]} 12. Qe2 {[%emt 0:00:30]} bxa4 {[%emt 0:00:00]} 13. Bxa4+ {[%emt 0:05:30]} Nxa4 {[%emt 0:02:00]} 14. Rxa4 {[%emt 0:00:30]} Be7 {[%emt 0:04:30]} 15. Bg5 {[%emt 0:05:30]} O-O {[%emt 0:01:30]} 16. Nbd2 {[%emt 0:01:30]} h6 {[%emt 0:01:30]} 17. Be3 {[%emt 0:04:30]} Nd7 {[%emt 0:07:30]} 18. Rea1 {[%emt 0:03:30]} Qc7 {[%emt 0:05:30]} 19. Nb3 {[%emt 0:17:30]} d5 {[%emt 0:10:30]} 20. Na5 {[%emt 0:12:30]} dxe4 {[%emt 0:06:30]} 21. Nd2 {[%emt 0:01:30]} Bd5 {[%emt 0:03:30]} 22. Nxe4 {[%emt 0:09:30]} f5 {[%emt 0:03:30]} 23. Nd2 {[%emt 0:01:30]} f4 {[%emt 0:04:30]} 24. Bd4 {[%emt 0:04:30]} e5 {[%emt 0:10:30]} 25. c4 {[%emt 0:07:30]} f3 {[%emt 0:00:30]} 26. Qe1 {[%emt 0:00:30]} Bf7 {[%emt 0:00:30]} 27. Nxf3 {[%emt 0:00:30]} exd4 {[%emt 0:00:30]} 28. Qxe7 {[%emt 0:00:30]} Rae8 {[%emt 0:00:30]} 29. Qh4 {[%emt 0:00:30]} Nc5 {[%emt 0:00:30]} 30. R4a3 {[%emt 0:00:30]} Re4 {[%emt 0:00:30]} 31. Qg3 {[%emt 0:03:34]} Qb6 {[%emt 0:02:30]} 32. h3 {[%emt 0:02:22]} Bh5 {[%emt 0:00:30]} 33. b4 {[%emt 0:00:30]} Ne6 {[%emt 0:01:30]} 34. Kh2 {[%emt 0:06:44]} Re2 {[%emt 0:02:30]} 35. c5 {[%emt 0:01:52]} Qxb4 {[%emt 0:04:30]} 36. Nc6 {[%emt 0:01:07]} Qxc5 {[%emt 0:00:30]} 37. Nce5 {[%emt 0:00:30]} Bxf3 {[%emt 0:00:30]} 38. Nd7 {[%emt 0:01:51]} Qc2 {[%emt 0:16:18]} 39. Nxf8 {[%emt 0:01:00]} Ng5 {[%emt 0:00:01]} 40. Rxf3 {[%emt 0:02:24]} Nxf3+ {[%emt 0:00:45]} 41. Qxf3 {[%emt 0:00:35]} Rxf2 {[%emt 0:00:06]} 42. Qd5+ {[%emt 0:00:35]} Kxf8 {[%emt 0:00:04]} 43. Rxa6 {[%emt 0:00:37]} Qc7+ {[%emt 0:01:52]} 44. Kg1 {[%emt 0:00:24]} Qc1+ {[%emt 0:01:27]} 45. Kxf2 {[%emt 0:00:44]} Qe3+ {[%emt 0:00:30]} 46. Kf1 {[%emt 0:00:30]} Qc1+ {[%emt 0:00:30]} 47. Kf2 {[%emt 0:00:00]} Qe3+ {[%emt 0:00:00]} 48. Kf1 {[%emt 0:00:00]} 1/2-1/2

[Event "10th Cesme Open-A 2024"]
[Site "Cesme"]
[Date "2024.06.29"]
[Round "8"]
[White "Eke, Salih"]
[Black "Domalchuk-Jonasson, Aleksandr"]
[Result "1/2-1/2"]
[ECO "C01"]
[WhiteElo "2251"]
[BlackElo "2380"]
[Annotator "RC"]
[PlyCount "122"]
[EventDate "2024.06.23"]
[EventType "swiss"]
[EventCountry "TUR"]
[SourceTitle "playchess.com"]
[Source "ChessBase"]
[SourceQuality "1"]
[TimeControl "5400+30"]

1. d4 {[%emt 0:01:00]} e6 {[%emt 0:01:00]} 2. c4 {[%emt 0:00:30]} b6 {[%emt 0:00:00]} 3. e4 {[%emt 0:00:30]} Bb4+ {[%emt 0:00:00]} 4. Bd2 {[%emt 0:00:30]} Bxd2+ {[%emt 0:00:00]} 5. Nxd2 {[%emt 0:01:30]} Ne7 {[%emt 0:00:00]} 6. Bd3 {[%emt 0:05:30]} d6 {[%emt 0:00:30]} 7. Ngf3 {[%emt 0:03:30]} e5 {[%emt 0:05:30]} 8. Qe2 {[%emt 0:07:30]} Ng6 {[%emt 0:02:30]} 9. g3 {[%emt 0:00:30]} Bh3 {[%emt 0:06:30]} 10. O-O-O {[%emt 0:02:30]} Nc6 {[%emt 0:05:30]} 11. d5 {[%emt 0:00:30]} Nb4 {[%emt 0:00:30]} 12. Bb1 {[%emt 0:06:30]} a5 {[%emt 0:02:30]} 13. Nf1 {[%emt 0:06:30]} Qf6 {[%emt 0:08:30]} 14. Ne3 {[%emt 0:00:30]} h5 {[%emt 0:01:30]} 15. Ne1 {[%emt 0:09:30]} Na6 {[%emt 0:12:30]} 16. Nd3 {[%emt 0:06:30]} Nc5 {[%emt 0:01:30]} 17. f3 {[%emt 0:00:30]} Rb8 {[%emt 0:07:30]} 18. Bc2 {[%emt 0:01:30]} Kf8 {[%emt 0:01:30]} 19. Kb1 {[%emt 0:03:30]} h4 {[%emt 0:02:30]} 20. Rhg1 {[%emt 0:06:30]} Kg8 {[%emt 0:04:30]} 21. Nf5 {[%emt 0:08:30]} Bxf5 {[%emt 0:07:30]} 22. exf5 {[%emt 0:00:30]} Ne7 {[%emt 0:00:30]} 23. g4 {[%emt 0:00:30]} Nxd3 {[%emt 0:06:30]} 24. Bxd3 {[%emt 0:06:30]} g5 {[%emt 0:00:30]} 25. fxg6 {[%emt 0:00:30]} fxg6 {[%emt 0:00:30]} 26. g5 {[%emt 0:00:30]} Qf7 {[%emt 0:02:30]} 27. f4 {[%emt 0:05:49]} exf4 {[%emt 0:00:30]} 28. Qe4 {[%emt 0:00:51]} Rf8 {[%emt 0:03:05]} 29. Rde1 {[%emt 0:02:38]} Rh7 {[%emt 0:00:16]} 30. Rgf1 {[%emt 0:01:21]} h3 {[%emt 0:00:30]} 31. Rf3 {[%emt 0:01:53]} Qf5 {[%emt 0:10:33]} 32. Qxf5 {[%emt 0:01:07]} Nxf5 {[%emt 0:00:08]} 33. Rxf4 {[%emt 0:00:41]} Rh5 {[%emt 0:00:19]} 34. Rg1 {[%emt 0:01:42]} Re8 {[%emt 0:06:35]} 35. Kc1 {[%emt 0:02:58]} Re5 {[%emt 0:00:50]} 36. Kd2 {[%emt 0:00:56]} Kg7 {[%emt 0:00:34]} 37. b3 {[%emt 0:04:59]} Rh4 {[%emt 0:02:17]} 38. Rxh4 {[%emt 0:01:19]} Nxh4 {[%emt 0:00:30]} 39. Rg3 {[%emt 0:00:30]} Rxg5 {[%emt 0:00:30]} 40. Rxh3 {[%emt 0:00:30]} Rg2+ {[%emt 0:00:00]} 41. Ke3 {[%emt 0:00:42]} g5 {[%emt 0:01:12]} 42. Rg3 {[%emt 0:00:14]} Rxa2 {[%emt 0:00:34]} 43. Rxg5+ {[%emt 0:00:11]} Kf6 {[%emt 0:00:19]} 44. Rg4 {[%emt 0:00:35]} Rxh2 {[%emt 0:00:52]} 45. Be4 {[%emt 0:00:06]} Nf5+ {[%emt 0:00:14]} 46. Bxf5 {[%emt 0:00:42]} Kxf5 {[%emt 0:00:30]} 47. Rg7 {[%emt 0:00:00]} Rh3+ {[%emt 0:00:34]} 48. Kd4 {[%emt 0:00:00]} Rxb3 {[%emt 0:00:20]} 49. Rf7+ {[%emt 0:00:00]} Kg5 {[%emt 0:00:00]} 50. Rxc7 {[%emt 0:00:00]} Rb4 {[%emt 0:01:08]} 51. Kc3 {[%emt 0:00:22]} b5 {[%emt 0:00:00]} 52. cxb5 {[%emt 0:01:26]} Rxb5 {[%emt 0:00:01]} 53. Kc4 {[%emt 0:00:49]} Rb4+ {[%emt 0:00:33]} 54. Kc3 {[%emt 0:00:30]} Kf5 {[%emt 0:00:00]} 55. Ra7 {[%emt 0:00:32]} Ra4 {[%emt 0:00:51]} 56. Kb3 {[%emt 0:00:13]} Ra1 {[%emt 0:00:40]} 57. Kb2 Rd1 58. Rxa5 Ke4 {[%emt 0:00:59]} 59. Kc2 {[%emt 0:00:37]} Rxd5 {[%emt 0:00:21]} 60. Rxd5 {[%emt 0:00:58]} Kxd5 {[%emt 0:00:30]} 61. Kd3 {[%emt 0:00:00]} Ke5 {[%emt 0:00:15]} 1/2-1/2